fUSD/lending_fUSD_20250611
["ID","MTS","AMOUNT","RATE_DAILY","PERIOD"]
[365353151,1749616242517,-490.0,0.00018246,2]
[365353154,1749616242526,-2465.84,0.00018246,2]
[365353156,1749616242536,-490.0,0.00018246,2]
[365353158,1749616242545,-490.0,0.00018246,2]
[365353160,1749616242555,-637.7,0.00018246,2]
[365353162,1749616242565,-878.62,0.00018246,2]
[365353164,1749616242574,-490.0,0.00018246,2]
[365353166,1749616242584,-490.0,0.00018246,2]
[365353168,1749616242593,-396.0,0.00018289,2]
[365353170,1749616242602,-1534.11677318,0.00018317,2]
[365353172,1749616242612,-1750.65,0.00018356,2]
[365353174,1749616242622,-205.07854877,0.000184,2]
[365353176,1749616242631,-490.0,0.0001841,2]
[365353178,1749616242641,-534.05,0.0001841,2]
[365353180,1749616242650,-490.0,0.0001841,2]
[365353181,1749616242660,-495.27,0.0001841,2]
[365353184,1749616242671,-490.0,0.0001841,2]
[365353185,1749616242681,-420.88,0.0001841,2]
[365353187,1749616242690,-500.0,0.0001841,2]
[365353189,1749616242700,-490.0,0.0001841,2]
[365353191,1749616242710,-490.0,0.0001841,2]
[365353193,1749616242720,-2465.84,0.0001841,2]
[365353195,1749616242730,-494.67,0.0001841,2]
[365353197,1749616242740,-490.0,0.0001841,2]
[365353199,1749616242750,-637.7,0.0001841,2]
[365353201,1749616242759,-878.62,0.0001841,2]
[365353203,1749616242768,-490.0,0.0001841,2]
[365353205,1749616242778,-490.0,0.0001841,2]
[365353207,1749616242787,-163.6528958,0.00018575,2]
[365353210,1749616242801,-254.01999999,0.00018575,2]
[365353212,1749616242812,-72.32710421,0.00018575,2]
[365353214,1749616242822,-534.05,0.00018575,2]
[365353216,1749616242831,-572.08,0.00018575,2]
[365353218,1749616242841,-495.27,0.00018575,2]
[365353220,1749616242851,-490.0,0.00018575,2]
[365353222,1749616242860,-500.0,0.00018575,2]
[365353224,1749616242869,-490.0,0.00018575,2]
[365353226,1749616242879,-490.0,0.00018575,2]
[365353228,1749616242889,-2465.84,0.00018575,2]
[365353230,1749616242898,-490.0,0.00018575,2]
[365353232,1749616242908,-637.7,0.00018575,2]
[365353234,1749616242917,-878.62,0.00018575,2]
[365353236,1749616242927,-490.0,0.00018575,2]
[365353238,1749616242936,-319.75,0.00018575,2]
[365353240,1749616242945,-203.0,0.00018595,4]
[365353242,1749616242955,-1534.11677318,0.00018713,2]
[365353245,1749616242964,-490.0,0.00018739,2]
[365353247,1749616242974,-534.05,0.00018739,2]
[365353249,1749616242983,-495.27,0.00018739,2]
[365353252,1749616242992,-490.0,0.00018739,2]
[365353254,1749616243002,-500.0,0.00018739,2]
[365353256,1749616243012,-490.0,0.00018739,2]
[365353258,1749616243021,-490.0,0.00018739,2]
[365353260,1749616243031,-2465.84,0.00018739,2]
[365353262,1749616243041,-490.0,0.00018739,2]
[365353264,1749616243051,-637.7,0.00018739,2]
[365353266,1749616243062,-878.62,0.00018739,2]
[365353268,1749616243071,-490.0,0.00018739,2]
[365353270,1749616243081,-4812.76487743,0.0001888,2]
[365353290,1749616243264,-599.35800966,0.0001888,2]
[365353293,1749616243276,-664.05658032,0.0001888,2]
[365353295,1749616243288,-1312.73899062,0.0001888,2]
[365353297,1749616243301,-1256.54981026,0.0001888,2]
[365353440,1749616245538,-490.0,0.00016438,2]
[365353441,1749616245550,-241.46794035,0.00016438,2]
[365353442,1749616245597,-228.53205965,0.00016438,2]
[365353443,1749616245608,-386.45674284,0.00016602,2]
[365353444,1749616245617,-3052.64031805,0.0001888,2]
[365353445,1749616245629,-608.78929597,0.0001888,2]
[365353446,1749616245710,-108978.74888468,0.0001888,2]
[365353447,1749616245770,-490.0,0.00016438,2]
[365353448,1749616245779,-635.30532543,0.0001888,2]
[365353486,1749616246116,-490.0,0.00016438,2]
[365353488,1749616246126,-490.0,0.00016602,2]
[365353490,1749616246135,-490.0,0.00016602,2]
[365353492,1749616246144,-1114525.86495648,0.0001888,2]
[365353494,1749616246154,-205.07854877,0.000189,2]
[365353496,1749616246163,-490.0,0.00018904,2]
[365353498,1749616246172,-534.05,0.00018904,2]
[365353500,1749616246181,-495.27,0.00018904,2]
[365353501,1749616246190,-490.0,0.00018904,2]
[365353502,1749616246199,-500.0,0.00018904,2]
[365353503,1749616246208,-490.0,0.00018904,2]
[365353504,1749616246217,-490.0,0.00018904,2]
[365353505,1749616246227,-2465.84,0.00018904,2]
[365353506,1749616246236,-490.0,0.00018904,2]
[365353507,1749616246245,-637.7,0.00018904,2]
[365353508,1749616246255,-878.62,0.00018904,2]
[365353509,1749616246264,-490.0,0.00018904,2]
[365353510,1749616246274,-250.0,0.00019,2]
[365353511,1749616246284,-38888.0,0.00019,2]
[365353513,1749616246292,-490.0,0.00019068,2]
[365353515,1749616246303,-534.05,0.00019068,2]
[365353517,1749616246312,-495.27,0.00019068,2]
[365353519,1749616246321,-490.0,0.00019068,2]
[365353521,1749616246330,-500.0,0.00019068,2]
[365353522,1749616246339,-490.0,0.00019068,2]
[365353523,1749616246348,-490.0,0.00019068,2]
[365353524,1749616246358,-2465.84,0.00019068,2]
[365353525,1749616246367,-490.0,0.00019068,2]
[365353526,1749616246376,-637.7,0.00019068,2]
[365353527,1749616246386,-878.62,0.00019068,2]
[365353528,1749616246400,-490.0,0.00019068,2]
[365353529,1749616246410,-1534.11677318,0.00019108,2]
[365353530,1749616246419,-453.9188747,0.00019178,2]
[365353531,1749616246428,-1000.0,0.000192,2]
[365353532,1749616246437,-156.587,0.0001921,2]
[365353533,1749616246446,-215.0738,0.0001921,2]
[365353534,1749616246456,-490.0,0.00019232,2]
[365353535,1749616246465,-534.05,0.00019232,2]
[365353536,1749616246474,-495.27,0.00019232,2]
[365353537,1749616246484,-490.0,0.00019232,2]
[365353538,1749616246494,-500.0,0.00019232,2]
[365353539,1749616246502,-490.0,0.00019232,2]
[365353540,1749616246511,-490.0,0.00019232,2]
[365353541,1749616246520,-2465.84,0.00019232,2]
[365353542,1749616246529,-490.0,0.00019232,2]
[365353543,1749616246538,-637.7,0.00019232,2]
[365353544,1749616246547,-878.62,0.00019232,2]
[365353545,1749616246557,-490.0,0.00019232,2]
[365353546,1749616246567,-490.0,0.00019397,2]
[365353547,1749616246576,-534.05,0.00019397,2]
[365353548,1749616246586,-495.27,0.00019397,2]
[365353549,1749616246595,-409.86,0.00019397,2]
[365353550,1749616246605,-500.0,0.00019397,2]
[365353551,1749616246614,-331.61243405,0.00019397,2]
[365353552,1749616246623,-490.0,0.00019397,2]
[365353553,1749616246633,-2465.84,0.00019397,2]
[365353554,1749616246642,-490.0,0.00019397,2]
[365353555,1749616246651,-637.7,0.00019397,2]
[365353556,1749616246662,-878.62,0.00019397,2]
[365353557,1749616246672,-490.0,0.00019397,2]
[365353558,1749616246681,-205.07854877,0.000194,2]
[365353559,1749616246691,-637.24,0.00019486,2]
[365353560,1749616246700,-1534.11677318,0.00019504,2]
[365353561,1749616246709,-165.89525269,0.00019559,2]
[365353562,1749616246719,-500.0,0.0001956,2]
[365353563,1749616246729,-500.0,0.0001956,2]
[365353564,1749616246738,-490.0,0.00019561,2]
[365353565,1749616246747,-534.05,0.00019561,2]
[365353566,1749616246757,-495.27,0.00019561,2]
[365353567,1749616246766,-500.0,0.00019561,2]
[365353568,1749616246775,-490.0,0.00019561,2]
[365353569,1749616246785,-2465.84,0.00019561,2]
[365353570,1749616246795,-490.0,0.00019561,2]
[365353571,1749616246805,-637.7,0.00019561,2]
[365353572,1749616246814,-878.62,0.00019561,2]
[365353573,1749616246823,-272.28,0.00019561,2]
[365353574,1749616246832,-337.0,0.000197,2]
[365353575,1749616246841,-490.0,0.00019726,2]
[365353576,1749616246850,-534.05,0.00019726,2]
[365353577,1749616246859,-495.27,0.00019726,2]
[365353578,1749616246869,-500.0,0.00019726,2]
[365353579,1749616246879,-490.0,0.00019726,2]
[365353580,1749616246889,-2465.84,0.00019726,2]
[365353581,1749616246899,-490.0,0.00019726,2]
[365353582,1749616246907,-637.7,0.00019726,2]
[365353583,1749616246916,-878.62,0.00019726,2]
[365353584,1749616246927,-763.0,0.00019755,2]
[365353585,1749616246939,-1000.0,0.000198,2]
[365353586,1749616246948,-500.0,0.0001984,2]
[365353587,1749616246958,-200.0,0.0001984,2]
[365353588,1749616246967,-763.0,0.00019844,2]
[365353589,1749616246976,-763.0,0.00019856,2]
[365353590,1749616246985,-490.0,0.0001989,2]
[365353591,1749616246994,-534.05,0.0001989,2]
[365353592,1749616247004,-495.27,0.0001989,2]
[365353593,1749616247013,-500.0,0.0001989,2]
[365353594,1749616247022,-490.0,0.0001989,2]
[365353595,1749616247031,-2465.84,0.0001989,2]
[365353596,1749616247040,-490.0,0.0001989,2]
[365353597,1749616247049,-637.7,0.0001989,2]
[365353598,1749616247058,-878.62,0.0001989,2]
[365353599,1749616247068,-27081.9763,0.000199,2]
[365353600,1749616247077,-86144.7573,0.000199,2]
[365353601,1749616247086,-165.89525269,0.000199,2]
[365353602,1749616247095,-163.07871678,0.000199,2]
[365353603,1749616247105,-1534.11677318,0.000199,2]
[365353604,1749616247115,-658.3371212,0.000199,2]
[365353605,1749616247125,-205.07854877,0.000199,2]
[365353606,1749616247134,-170.23626065,0.000199,2]
[365353607,1749616247143,-154.47,0.00019904,2]
[365353608,1749616247152,-2187.1073369,0.00019986,2]
[365353609,1749616247162,-2484.8177234,0.00019986,2]
[365353610,1749616247172,-2782.5281099,0.00019986,2]
[365353611,1749616247181,-3080.2384964,0.00019986,2]
[365353612,1749616247190,-3377.9488829,0.00019986,2]
[365353613,1749616247200,-150.0,0.00019994,2]
[365353614,1749616247209,-1889.3969504,0.00019996,2]
[365353615,1749616247218,-307.05342664,0.00019999,2]
[365353616,1749616247227,-530.94,0.00019999,2]
[365353617,1749616247236,-648.78929597,0.00019999,2]
[365353618,1749616247244,-12254.66,0.00019999,2]
[365353619,1749616247254,-22612.26325733,0.0002,3]
[365353620,1749616247264,-1103.72582266,0.0002,3]
[365353621,1749616247273,-739790.76824126,0.0002,2]
[365353622,1749616247286,-784.46615061,0.0002,2]
[365353623,1749616247305,-300.0,0.00016767,2]
[365353624,1749616247314,-1489.13395213,0.0002,2]
[365353625,1749616376237,500.87,0.00013873,2]
[365353626,1749616454923,200.0,0.00015791,2]
[365353628,1749616521821,1000.0,0.00015954,2]
[365353640,1749616637414,251.98049272,2.465e-05,30]
[365353642,1749616649419,438.00267604,0.00015835,2]
[365353643,1749616649442,61.99732396,0.00015835,2]
[365353644,1749616710417,156.4,0.00013699,2]
[365353646,1749616732676,409.69,0.00015867,2]
[365353647,1749616779765,1613.94,0.00015867,2]
[365353648,1749616837134,165.72135587,0.00015788,2]
[365353649,1749616888364,169.07,0.00015879,2]
[365353650,1749616901544,203.0,0.00015117,2]
[365353651,1749616923044,229.81,0.00015963,2]
[365353652,1749616928093,990.37132017,0.00015963,2]
[365353653,1749616928120,1760.62867983,0.00015963,2]
[365353654,1749617014292,17484.36,0.00015855,2]
[365353655,1749617021513,150.0,0.00015855,7]
[365353656,1749617042334,250.0,0.00015963,2]
[365353657,1749617084992,45251.51,0.00015817,2]
[365353658,1749617132126,-500.87,0.00016137,2]
[365353659,1749617132146,-178.78629836,0.0001616,2]
[365353660,1749617132167,-493.47780705,0.00016164,2]
[365353662,1749617143640,161.37,0.00015846,2]
[365353663,1749617226439,2121.0,0.00024658,120]
[365353664,1749617233094,-15.20031736,0.00016164,2]
[365353665,1749617233118,-529.79200548,0.00016164,2]
[365353666,1749617233137,-134.61207745,0.00016164,2]
[365353667,1749617240021,48107.95,0.00015872,2]
[365353668,1749617244530,200.0,0.00015872,2]
[365353669,1749617247094,-377.53780579,0.00016164,2]
[365353670,1749617247117,-1117.15885143,0.0001618,2]
[365353671,1749617250088,-82.84114857,0.0001618,2]
[365353672,1749617250111,-300.0,0.0001618,2]
[365353673,1749617250132,-57.64135819,0.00016181,2]
[365353674,1749617254138,-9863.36276773,0.00016181,2]
[365353675,1749617261441,203.0,0.00015399,2]
[365353676,1749617278513,666.0,0.00015912,2]
[365353679,1749617313604,150.0,0.00015824,2]
[365353681,1749617350129,-300.0,0.0001618,2]
[365353682,1749617350151,-13978.99587408,0.00016181,2]
[365353683,1749617350172,-919.3748341,0.00016238,2]
[365353684,1749617351643,307.0,0.00015399,2]
[365353685,1749617381437,232.0,0.00015399,2]
[365353686,1749617397820,1333.0,0.00023725,120]
[365353701,1749617431641,-440.7851659,0.00016238,2]
[365353703,1749617431651,-61.08721778,0.00016301,4]
[365353704,1749617431663,-538.91278222,0.00016301,4]
[365353705,1749617431672,-250.0,0.00016301,2]
[365353706,1749617431682,-300.0,0.00016301,2]
[365353707,1749617431691,-178.2183196,0.00016301,2]
[365353708,1749617431701,-679.416,0.00016301,2]
[365353709,1749617431711,-697.59095762,0.00016337,2]
[365353710,1749617431720,-1200.0,0.00016337,2]
[365353711,1749617431730,-193.66101368,0.00016338,2]
[365353712,1749617431739,-652.73773946,0.00016338,2]
[365353713,1749617431749,-164.44422917,0.00016338,2]
[365353714,1749617431758,-1273.64878616,0.00016338,2]
[365353715,1749617431768,-18786.4207,0.00016338,2]
[365353716,1749617431776,-1000.0,0.00016338,2]
[365353717,1749617431785,-3957.782,0.00016338,2]
[365353718,1749617431794,-6756.7046,0.00016338,2]
[365353719,1749617431805,-271.9607,0.00016338,2]
[365353720,1749617431815,-222.72,0.00016428,2]
[365353721,1749617431823,-222.72,0.00016428,2]
[365353722,1749617431833,-901.94,0.00016428,2]
[365353723,1749617431842,-544.50239547,0.00016437,2]
[365353724,1749617431853,-178.17966959,0.00016437,2]
[365353725,1749617431863,-189.44200679,0.00016437,2]
[365353726,1749617431872,-449.63703843,0.00016437,2]
[365353727,1749617431884,-279.74719701,0.00016437,2]
[365353728,1749617431893,-500.0,0.00016437,2]
[365353729,1749617431902,-265.95229578,0.00016437,2]
[365353730,1749617431911,-219.09990189,0.00016437,2]
[365353731,1749617431922,-2178.94945623,0.00016437,2]
[365353732,1749617431931,-501.98525764,0.00016438,2]
[365353733,1749617431941,-500.0,0.00016438,2]
[365353734,1749617431950,-500.0,0.00016438,2]
[365353735,1749617431960,-500.0,0.00016438,2]
[365353736,1749617431970,-603.33531521,0.00016438,2]
[365353737,1749617431980,-467.17192961,0.00016438,2]
[365353738,1749617431989,-423.45019767,0.00016438,2]
[365353739,1749617431999,-463.69697365,0.00016438,2]
[365353740,1749617432009,-462.13661211,0.00016438,2]
[365353741,1749617432019,-464.39464286,0.00016438,2]
[365353742,1749617432028,-359.33352643,0.00016438,2]
[365353743,1749617432038,-464.80966893,0.00016438,2]
[365353744,1749617432047,-472.74309669,0.00016438,2]
[365353745,1749617432057,-460.0,0.00016438,2]
[365353746,1749617432067,-474.20564158,0.00016438,2]
[365353747,1749617432076,-171.09458614,0.00016438,2]
[365353748,1749617432100,-294.26714721,0.00016438,2]
[365353750,1749617432110,-359.55249084,0.00016438,2]
[365353752,1749617432120,-438.15182761,0.00016438,2]
[365353754,1749617432130,-100.52847949,0.00016438,2]
[365353756,1749617432142,-335.09267996,0.00016438,2]
[365353758,1749617432151,-438.43970583,0.00016438,2]
[365353760,1749617432161,-591.76541765,0.00016438,2]
[365353762,1749617432171,-460.0,0.00016438,2]
[365353764,1749617432180,-460.0,0.00016438,2]
[365353766,1749617432189,-490.0,0.00016438,2]
[365353768,1749617432199,-490.0,0.00016438,2]
[365353769,1749617432208,-461.57973027,0.00016438,2]
[365353771,1749617432218,-460.0,0.00016438,2]
[365353773,1749617432227,-461.28943576,0.00016438,2]
[365353774,1749617432237,-382.84838765,0.00016438,2]
[365353775,1749617432246,-342.15105976,0.00016438,2]
[365353777,1749617432256,-315.22658213,0.00016438,2]
[365353779,1749617432265,-602.5999585,0.00016438,2]
[365353781,1749617432275,-466.51455062,0.00016438,2]
[365353783,1749617432284,-563.6058893,0.00016438,2]
[365353785,1749617432294,-460.0,0.00016438,2]
[365353787,1749617432303,-490.0,0.00016438,2]
[365353789,1749617432312,-490.0,0.00016438,2]
[365353791,1749617432321,-465.16352774,0.00016438,2]
[365353793,1749617432330,-467.4194355,0.00016438,2]
[365353795,1749617432340,-468.66633111,0.00016438,2]
[365353797,1749617432349,-466.42851866,0.00016438,2]
[365353799,1749617432359,-490.0,0.00016438,2]
[365353801,1749617432368,-465.76800327,0.00016438,2]
[365353803,1749617432378,-429.55391547,0.00016438,2]
[365353805,1749617432388,-490.0,0.00016438,2]
[365353807,1749617432397,-469.70951193,0.00016438,2]
[365353809,1749617432406,-469.82303943,0.00016438,2]
[365353811,1749617432415,-472.02604763,0.00016438,2]
[365353813,1749617432424,-471.77983,0.00016438,2]
[365353815,1749617432434,-490.0,0.00016438,2]
[365353817,1749617432443,-467.32577876,0.00016438,2]
[365353819,1749617432452,-466.37081077,0.00016438,2]
[365353821,1749617432461,-468.84426714,0.00016438,2]
[365353823,1749617432471,-464.12435387,0.00016438,2]
[365353825,1749617432480,-490.0,0.00016438,2]
[365353827,1749617432490,-464.57068017,0.00016438,2]
[365353829,1749617432500,-460.0,0.00016438,2]
[365353831,1749617432509,-490.0,0.00016438,2]
[365353833,1749617432519,-490.0,0.00016438,2]
[365353835,1749617432528,-490.0,0.00016438,2]
[365353837,1749617432538,-465.60675513,0.00016438,2]
[365353839,1749617432547,-469.77147673,0.00016438,2]
[365353841,1749617432557,-490.0,0.00016438,2]
[365353843,1749617432566,-472.32719596,0.00016438,2]
[365353845,1749617432575,-442.71833464,0.00016438,2]
[365353847,1749617432585,-490.0,0.00016438,2]
[365353849,1749617432594,-558.03849982,0.00016438,2]
[365353851,1749617432604,-463.14682961,0.00016438,2]
[365353853,1749617432613,-465.00597714,0.00016438,2]
[365353855,1749617432623,-549.6,0.00016438,2]
[365353857,1749617432632,-460.0,0.00016438,2]
[365353859,1749617432641,-490.0,0.00016438,2]
[365353861,1749617432650,-490.0,0.00016438,2]
[365353863,1749617432659,-471.25262846,0.00016438,2]
[365353865,1749617432669,-463.63246592,0.00016438,2]
[365353867,1749617432679,-490.0,0.00016438,2]
[365353869,1749617432688,-490.0,0.00016438,2]
[365353872,1749617432698,-471.36727156,0.00016438,2]
[365353873,1749617432707,-467.87748909,0.00016438,2]
[365353876,1749617432716,-473.08137546,0.00016438,2]
[365353878,1749617432725,-470.37111763,0.00016438,2]
[365353880,1749617432734,-611.37391417,0.00016438,2]
[365353882,1749617432743,-463.24511996,0.00016438,2]
[365353884,1749617432752,-481.41553497,0.00016438,2]
[365353886,1749617432762,-460.0,0.00016438,2]
[365353888,1749617432772,-469.78734445,0.00016438,2]
[365353889,1749617432782,-460.0,0.00016438,2]
[365353891,1749617432792,-490.0,0.00016438,2]
[365353893,1749617432801,-476.16159036,0.00016438,2]
[365353895,1749617432814,-470.65228023,0.00016438,2]
[365353897,1749617432823,-464.65752766,0.00016438,2]
[365353900,1749617432833,-490.0,0.00016438,2]
[365353902,1749617432842,-464.00486133,0.00016438,2]
[365353904,1749617432853,-490.0,0.00016438,2]
[365353906,1749617432862,-490.0,0.00016438,2]
[365353908,1749617432872,-464.35143087,0.00016438,2]
[365353910,1749617432881,-462.36279057,0.00016438,2]
[365353912,1749617432890,-464.12914243,0.00016438,2]
[365353913,1749617432900,-464.04168194,0.00016438,2]
[365353915,1749617432909,-490.0,0.00016438,2]
[365353918,1749617432919,-347.23356319,0.00016438,2]
[365353920,1749617432928,-464.71194657,0.00016438,2]
[365353922,1749617432938,-466.17420683,0.00016438,2]
[365353924,1749617432948,-490.0,0.00016438,2]
[365353926,1749617432957,-490.0,0.00016438,2]
[365353928,1749617432966,-463.09274471,0.00016438,2]
[365353930,1749617432976,-490.0,0.00016438,2]
[365353932,1749617432986,-490.0,0.00016438,2]
[365353934,1749617432995,-466.67644656,0.00016438,2]
[365353936,1749617433005,-490.0,0.00016438,2]
[365353938,1749617433014,-467.89195809,0.00016438,2]
[365353940,1749617433024,-528.85317422,0.00016438,2]
[365353942,1749617433034,-481.40191271,0.00016438,2]
[365353944,1749617433044,-463.33925231,0.00016438,2]
[365353946,1749617433054,-490.0,0.00016438,2]
[365353948,1749617433064,-470.63796087,0.00016438,2]
[365353950,1749617433073,-490.0,0.00016438,2]
[365353952,1749617433084,-463.86170798,0.00016438,2]
[365353954,1749617433093,-490.0,0.00016438,2]
[365353956,1749617433103,-490.0,0.00016438,2]
[365353958,1749617433112,-428.89020285,0.00016438,2]
[365353960,1749617433122,-442.94464248,0.00016438,2]
[365353962,1749617433132,-490.0,0.00016438,2]
[365353964,1749617433142,-490.0,0.00016438,2]
[365353966,1749617433151,-553.33419854,0.00016438,2]
[365353968,1749617433160,-404.22009651,0.00016438,2]
[365353970,1749617433170,-466.66874127,0.00016438,2]
[365353972,1749617433179,-490.0,0.00016438,2]
[365353974,1749617433189,-490.0,0.00016438,2]
[365353976,1749617433198,-473.12836601,0.00016438,2]
[365353978,1749617433207,-478.47792004,0.00016438,2]
[365353980,1749617433217,-467.16478359,0.00016438,2]
[365353982,1749617433226,-490.0,0.00016438,2]
[365353984,1749617433236,-490.0,0.00016438,2]
[365353986,1749617433246,-500.0,0.00016438,2]
[365353988,1749617433255,-490.0,0.00016438,2]
[365353989,1749617433266,-465.25481713,0.00016438,2]
[365353992,1749617433275,-490.0,0.00016438,2]
[365353993,1749617433285,-490.0,0.00016438,2]
[365353995,1749617433295,-490.0,0.00016438,2]
[365353998,1749617433305,-490.0,0.00016438,2]
[365354000,1749617433315,-460.00249753,0.00016438,2]
[365354002,1749617433324,-467.44493328,0.00016438,2]
[365354004,1749617433334,-490.0,0.00016438,2]
[365354006,1749617433343,-490.0,0.00016438,2]
[365354008,1749617433352,-490.0,0.00016438,2]
[365354010,1749617433362,-490.0,0.00016438,2]
[365354012,1749617433372,-490.0,0.00016438,2]
[365354014,1749617433381,-462.89865432,0.00016438,2]
[365354016,1749617433392,-490.0,0.00016438,2]
[365354018,1749617433402,-467.0385982,0.00016438,2]
[365354019,1749617433412,-490.0,0.00016438,2]
[365354021,1749617433422,-461.51797319,0.00016438,2]
[365354023,1749617433431,-490.0,0.00016438,2]
[365354025,1749617433441,-541.82023133,0.00016438,2]
[365354028,1749617433450,-463.15715267,0.00016438,2]
[365354030,1749617433460,-490.0,0.00016438,2]
[365354031,1749617433470,-490.0,0.00016438,2]
[365354034,1749617433480,-464.25278281,0.00016438,2]
[365354036,1749617433490,-472.44405329,0.00016438,2]
[365354037,1749617433499,-470.73673639,0.00016438,2]
[365354039,1749617433509,-490.0,0.00016438,2]
[365354042,1749617433519,-490.0,0.00016438,2]
[365354044,1749617433530,-389.9299713,0.00016438,2]
[365354046,1749617433540,-465.84304726,0.00016438,2]
[365354048,1749617433550,-490.0,0.00016438,2]
[365354050,1749617433564,-490.0,0.00016438,2]
[365354052,1749617433575,-357.62891974,0.00016438,2]
[365354054,1749617433585,-490.0,0.00016438,2]
[365354056,1749617433594,-466.20949581,0.00016438,2]
[365354058,1749617433604,-464.51888035,0.00016438,2]
[365354060,1749617433615,-490.0,0.00016438,2]
[365354062,1749617433626,-490.0,0.00016438,2]
[365354064,1749617433636,-490.0,0.00016438,2]
[365354066,1749617433646,-490.0,0.00016438,2]
[365354068,1749617433656,-490.0,0.00016438,2]
[365354070,1749617433666,-490.0,0.00016438,2]
[365354072,1749617433676,-466.79677948,0.00016438,2]
[365354074,1749617433686,-490.0,0.00016438,2]
[365354077,1749617433696,-490.0,0.00016438,2]
[365354079,1749617433706,-467.77647435,0.00016438,2]
[365354081,1749617433715,-490.0,0.00016438,2]
[365354083,1749617433724,-490.0,0.00016438,2]
[365354085,1749617433734,-490.0,0.00016438,2]
[365354087,1749617433744,-490.0,0.00016438,2]
[365354088,1749617433753,-490.0,0.00016438,2]
[365354090,1749617433763,-490.0,0.00016438,2]
[365354092,1749617433773,-490.0,0.00016438,2]
[365354095,1749617433783,-490.0,0.00016438,2]
[365354097,1749617433793,-490.0,0.00016438,2]
[365354099,1749617433806,-490.0,0.00016438,2]
[365354101,1749617433816,-461.89714367,0.00016438,2]
[365354103,1749617433826,-490.0,0.00016438,2]
[365354105,1749617433838,-490.0,0.00016438,2]
[365354107,1749617433848,-490.0,0.00016438,2]
[365354109,1749617433858,-490.0,0.00016438,2]
[365354111,1749617433868,-490.0,0.00016438,2]
[365354113,1749617433877,-463.45413926,0.00016438,2]
[365354115,1749617433888,-490.0,0.00016438,2]
[365354117,1749617433896,-490.0,0.00016438,2]
[365354119,1749617433906,-490.0,0.00016438,2]
[365354121,1749617433914,-490.0,0.00016438,2]
[365354123,1749617433923,-460.0,0.00016438,2]
[365354125,1749617433932,-490.0,0.00016438,2]
[365354127,1749617433941,-588.0,0.00016438,2]
[365354129,1749617433951,-343.6943801,0.00016438,2]
[365354131,1749617433960,-490.0,0.00016438,2]
[365354133,1749617433969,-490.0,0.00016438,2]
[365354135,1749617433979,-490.0,0.00016438,2]
[365354137,1749617433988,-460.0,0.00016438,2]
[365354139,1749617433998,-490.0,0.00016438,2]
[365354141,1749617434007,-490.0,0.00016438,2]
[365354143,1749617434016,-462.32812142,0.00016438,2]
[365354145,1749617434025,-490.0,0.00016438,2]
[365354147,1749617434034,-460.0,0.00016438,2]
[365354149,1749617434044,-460.0,0.00016438,2]
[365354150,1749617434054,-490.0,0.00016438,2]
[365354153,1749617434064,-460.0,0.00016438,2]
[365354155,1749617434073,-490.0,0.00016438,2]
[365354156,1749617434082,-490.0,0.00016438,2]
[365354157,1749617434092,-490.0,0.00016438,2]
[365354159,1749617434102,-497.90828261,0.00016438,2]
[365354161,1749617434112,-490.0,0.00016438,2]
[365354163,1749617434121,-490.0,0.00016438,2]
[365354165,1749617434130,-494.18740637,0.00016438,2]